[Event "44th Chess Olympiad Open 2022"]
[Site "Chennai"]
[Date "2022.08.05"]
[Round "7.4"]
[White "Kollars, Dmitrij"]
[Black "Ivanisevic, Ivan"]
[Result "1-0"]
[ECO "C88"]
[WhiteElo "2648"]
[BlackElo "2561"]
[Annotator "TA"]
[PlyCount "125"]
[EventDate "2022.07.29"]
[EventType "team-tourn"]
[EventCountry "IND"]
[SourceTitle "playchess.com"]
[Source "ChessBase"]
[SourceQuality "1"]
[WhiteTeam "Germany"]
[BlackTeam "Serbia"]
[WhiteTeamCountry "GER"]
[BlackTeamCountry "SRB"]
[TimeControl "40/5400+30:1800+30"]

{[%evp 14,125,36,14,32,37,29,31,37,37,30,32,42,36,35,37,35,28,45,29,31,22,34,38,44,38,38,14,14,9,14,14,2,0,0,0,0,0,30,44,33,30,34,36,43,34,34,43,46,56,64,66,58,87,116,70,85,71,67,0,0,0,0,0,44,42,195,195,185,164,193,197,195,188,225,215,269,171,175,162,264,250,264,277,264,255,244,234,307,185,154,152,518,476,1432,1399,720,1419,983,1019,888,774,992,992,992,643,29963,29965,29980,29981,29980,29980,29978,1385]} 1. e4 {[%emt 0:00:05]} e5 {[%emt 0:00:06]} 2. Nf3 {[%emt 0:00:11]} Nc6 {[%emt 0:00:06]} 3. Bb5 {[%emt 0:00:24]} a6 {[%emt 0:00:07]} 4. Ba4 {[%emt 0:00:04]} Nf6 {[%emt 0:00:43]} 5. O-O {[%emt 0:00:29]} Be7 {[%emt 0:00:05]} 6. Re1 {[%emt 0:00:33]} b5 {[%emt 0:00:17]} 7. Bb3 {[%emt 0:00:05]} O-O {[%emt 0:00:40]} 8. a4 {[%emt 0:00:40][%cal Ba2a4,Ba4b5][%mdl 32]} Na5 {[%emt 0:01:11] C88: Closed Ruy Lopez: Anti-Marshall Systems.} 9. axb5 {[%emt 0:00:38]} Nxb3 {[%emt 0:00:07]} 10. cxb3 {[%emt 0:00:04]} Bb7 {[%emt 0:00:09][%cal Bc8b7,Bb7e4,Be4d3][%mdl 32] White is slightly better.} 11. bxa6 {[%emt 0:00:32]} Bxe4 {[%emt 0:00:15]} 12. Nc3 {[%emt 0:00:45]} Bd3 {[%emt 0:06:14]} 13. Nxe5 {[%emt 0:00:38]} Bxa6 {[%emt 0:00:09] A strong pair of Bishops.} (13... Rxa6 14. Ra4 Rxa4 15. bxa4 $16) 14. d4 {[%emt 0:02:43] [#]} Re8 $146 {[%emt 0:02:11]} ({Predecessor:} 14... Bb7 15. Rxa8 Bxa8 16. Bg5 d6 17. Ng4 Nd5 18. Bxe7 Nxe7 19. f3 Ng6 20. b4 Qb8 {½-½ (35) Palac,M (2571)-Halkias,S (2555) Warsaw 2013}) 15. Bg5 {[%emt 0:15:49]} h6 {[%emt 0:03:20]} 16. Bh4 {[%emt 0:03:23][%cal Ob3b4]} Bb7 {[%emt 0:16:17]} 17. Rxa8 {[%emt 0:11:16]} Bxa8 {[%emt 0:01:22]} 18. h3 {[%emt 0:02:06][%cal Ob3b4]} (18. b4 $5 {[%cal Rd1b3]}) 18... g5 {[%emt 0:11:40]} 19. Bg3 {[%emt 0:01:03]} Bf8 {[%emt 0:00:35]} 20. Re3 {[%emt 0:09:35]} d6 {[%emt 0:06:15]} 21. Nc4 {[%emt 0:11:20][%cal Be5c4,Bc4e3,Be3g4][%mdl 32]} Nd5 {[%emt 0:00:38]} 22. Nxd5 {[%emt 0:04:41]} Bxd5 {[%emt 0:01:53]} 23. Qd3 {[%emt 0:00:29]} Bg7 {[%emt 0:04:34]} 24. f3 {[%emt 0:01:16]} Rf8 {[%emt 0:06:37]} 25. Re2 {[%emt 0:02:49]} f5 {[%emt 0:02:49]} 26. Ne3 {[%emt 0:02:33][%csl LRd5,LRf5]} Be6 {[%emt 0:00:53] And now ...f4 would win.} 27. d5 $36 {[%emt 0:01:49][%mdl 2048] White has good play.} Bd7 {[%emt 0:00:51]} 28. Be1 {[%emt 0:01:11]} f4 {[%emt 0:04:27]} 29. Ng4 {[%emt 0:01:20]} Bf5 {[%emt 0:11:03] Inhibits Qg6.} 30. Qc4 {[%emt 0:00:11]} h5 {[%emt 0:00:44]} 31. Nf2 {[%emt 0:00:15]} Qd7 {[%emt 0:03:52]} 32. Bc3 {[%emt 0:00:47]} Bxc3 {[%emt 0:05:16]} 33. bxc3 {[%emt 0:00:24][%cal Oh3h4]} Qg7 {[%emt 0:00:05]} 34. Re1 {[%emt 0:03:01]} ({Better is} 34. b4 $1 $16) 34... Kh7 {[%emt 0:02:57]} 35. b4 {[%emt 0:03:54]} Rf7 {[%emt 0:02:15]} 36. Re8 {[%emt 0:04:20]} (36. Kh2 $14) 36... Re7 $11 {[%emt 0:00:58]} 37. Rxe7 {[%emt 0:09:41]} Qxe7 {[%emt 0:00:05][%mdl 4096] Endgame KQB-KQN} 38. Kf1 {[%emt 0:02:26]} Kg6 {[%emt 0:00:23]} 39. Qd4 {[%emt 0:00:15][%cal Oh3h4]} Qe8 $2 {[%emt 0:01:43]} (39... Qf6 $1 $14) 40. h4 $18 {[%emt 0:02:31]} gxh4 {[%emt 0:02:10]} 41. Qxf4 {[%emt 0:33:21]} Qb5+ {[%emt 0:06:07]} 42. Kg1 {[%emt 0:00:00] Black must now prevent Ne4.} Qxd5 {[%emt 0:03:03]} 43. Qxh4 {[%emt 0:00:00] Strongly threatening Ne4.} Qe5 {[%emt 0:09:17] [#]} 44. Ne4 {[%emt 0:00:00]} ({Weaker is} 44. g4 hxg4 45. Nxg4 (45. fxg4 Be6 $11) 45... Qxc3 $11) 44... Bd7 {[%emt 0:07:13]} 45. Kf2 {[%emt 0:00:00]} Bc6 {[%emt 0:02:21]} 46. Ke3 {[%emt 0:00:00]} Bd5 {[%emt 0:03:35]} (46... d5 {was necessary.} 47. Qg3+ Qxg3 48. Nxg3 h4) 47. Qf4 {[%emt 0:00:00]} Qe7 {[%emt 0:00:18]} 48. g4 {[%emt 0:00:00]} hxg4 {[%emt 0:00:40]} 49. Qxg4+ {[%emt 0:00:00]} Kh6 {[%emt 0:00:15]} 50. Qf5 {[%emt 0:00:00]} Bf7 {[%emt 0:02:34]} 51. Kf4 {[%emt 0:00:00] Threatens to win with Qg5+.} Qh4+ {[%emt 0:00:21] [#]} 52. Qg4 $1 {[%emt 0:00:00]} Qh2+ {[%emt 0:00:07] This costs Black the game.} (52... Qxg4+ $16 {is more resistant.} 53. fxg4 Kg7) 53. Ke3 {[%emt 0:00:00]} Qe5 {[%emt 0:01:13]} (53... Qh1 $142 54. Qf4+ Kg7) 54. f4 {[%emt 0:00:00]} Qe7 {[%emt 0:00:33]} 55. Qg5+ {[%emt 0:01:52]} (55. b5 $142 Kh7 56. Kd4 (56. Qh3+ Kg8 $16)) 55... Qxg5 {[%emt 0:00:01]} 56. Nxg5 {[%emt 0:00:04] KB-KN} Bg8 {[%emt 0:00:51]} 57. Nf3 {[%emt 0:00:33]} Be6 {[%emt 0:00:49]} 58. Nd4 {[%emt 0:00:28]} Bd7 {[%emt 0:00:05]} 59. Ke4 {[%emt 0:00:27] White threatens Kd5 and mate.} Kh5 {[%emt 0:00:56]} 60. Kd5 {[%emt 0:00:41] White mates.} Ba4 {[%emt 0:00:41]} 61. b5 {[%emt 0:00:30]} Kg4 {[%emt 0:00:57]} 62. f5 {[%emt 0:00:19]} Kg5 {[%emt 0:00:56]} 63. Ke4 {[%emt 0:00:49] Weighted Error Value: White=0.16 (very precise) /Black=0.40} (63. Ne6+ $142 Kf6 64. Nxc7 Ke7 65. Kc6 Kf7 66. Kxd6 Bc2 67. b6 Kf6 68. b7 Kxf5 69. Nd5) 1-0

[Event "44th Chess Olympiad Open 2022"]
[Site "Chennai"]
[Date "2022.08.05"]
[Round "7.4"]
[White "Indjic, Aleksandar"]
[Black "Keymer, Vincent"]
[Result "1/2-1/2"]
[ECO "A28"]
[WhiteElo "2620"]
[BlackElo "2686"]
[Annotator "TA"]
[PlyCount "158"]
[EventDate "2022.07.29"]
[EventType "team-tourn"]
[EventCountry "IND"]
[SourceTitle "playchess.com"]
[Source "ChessBase"]
[SourceQuality "1"]
[WhiteTeam "Serbia"]
[BlackTeam "Germany"]
[WhiteTeamCountry "SRB"]
[BlackTeamCountry "GER"]
[TimeControl "40/5400+30:1800+30"]

{[%evp 12,158,0,0,0,10,8,0,6,0,0,0,2,0,9,10,15,0,19,0,23,25,34,41,74,52,63,63,57,59,52,64,71,30,29,0,0,-69,79,40,32,24,64,0,0,0,0,0,0,0,33,35,53,53,48,51,235,22,22,22,23,41,35,0,0,0,0,0,0,0,0,-37,-37,-39,-46,-40,0,0,0,0,0,0,0,0,0,0,0,0,0,0,0,0,0,0,0,0,0,0,0,0,0,0,0,0,0,0,0,0,0,0,0,0,0,0,0,-216,-216,-216,-216,-216,-216,-296,-295,-278,-216,-216,-216,-12838,-209,-185,0,0,0,0,0,0,0,0,0,0,0,0,0,0,0,0,0,0,0]} 1. c4 {[%emt 0:01:07]} Nf6 {[%emt 0:00:06]} 2. Nc3 {[%emt 0:02:43]} e5 {[%emt 0:00:05]} 3. Nf3 {[%emt 0:02:58]} Nc6 {[%emt 0:00:05]} 4. d3 {[%emt 0:00:53]} Bb4 {[%emt 0:02:21]} 5. Bd2 {[%emt 0:00:38]} O-O {[%emt 0:00:06]} 6. a3 {[%emt 0:00:19]} Bxc3 {[%emt 0:03:52]} 7. Bxc3 {[%emt 0:04:37]} e4 {[%emt 0:04:47]} 8. dxe4 {[%emt 0:00:00]} Nxe4 {[%emt 0:00:09]} 9. Rc1 {[%emt 0:00:00]} d6 {[%emt 0:05:12]} 10. g3 {[%emt 0:03:05]} Re8 {[%emt 0:09:25]} 11. Bg2 {[%emt 0:00:00]} Qe7 {[%emt 0:00:14]} 12. b4 {[%emt 0:25:53]} Bg4 {[%emt 0:24:27]} 13. Ba1 {[%emt 0:04:55]} Ng5 {[%emt 0:00:07]} 14. Ng1 {[%emt 0:08:23]} Ne6 {[%emt 0:21:03]} 15. h3 {[%emt 0:00:00]} Bh5 {[%emt 0:00:05]} 16. Nf3 {[%emt 0:02:44]} a5 {[%emt 0:02:18]} 17. b5 {[%emt 0:00:00]} Ne5 {[%emt 0:00:36]} 18. Nxe5 {[%emt 0:00:51]} dxe5 {[%emt 0:00:00]} 19. Bxb7 {[%emt 0:01:35]} (19. Bxe5 $2 Rad8 20. Qc2 Nc5 $19) 19... Rad8 {[%emt 0:01:34]} 20. Bd5 {[%emt 0:02:35]} Nd4 {[%emt 0:00:11]} 21. g4 {[%emt 0:00:00]} Bg6 {[%emt 0:00:09]} 22. e3 {[%emt 0:00:00]} Ne6 $1 {[%emt 0:04:41]} 23. f3 {[%emt 0:07:10]} (23. a4 $5 {[%cal Re1g1]}) 23... Qxa3 {[%emt 0:04:54]} 24. Kf2 {[%emt 0:00:00]} (24. Qd2 $11) 24... h5 {[%emt 0:04:03]} (24... e4 $1 $15 {stays ahead.} 25. Rc3 Qc5) 25. gxh5 {[%emt 0:04:23]} Bxh5 {[%emt 0:00:11]} 26. Rg1 {[%emt 0:00:08]} Qe7 {[%emt 0:02:06]} 27. Bxe5 {[%emt 0:02:46]} (27. Rg3 $1 $14) 27... Ng5 $11 {[%emt 0:00:10]} 28. Rxg5 {[%emt 0:00:38]} Qxg5 {[%emt 0:00:08]} 29. Bf4 {[%emt 0:00:04]} Qh4+ {[%emt 0:01:50]} 30. Bg3 {[%emt 0:01:54]} Qe7 {[%emt 0:01:52]} 31. Qd4 {[%emt 0:00:00]} Qa3 {[%emt 0:01:29]} 32. Re1 {[%emt 0:03:49]} (32. Ra1 Qb3 33. Rd1 (33. Bxc7 $2 Rxd5 34. cxd5 Qc2+ 35. Kg3 Qxc7+ 36. d6 Qb7 $19) 33... Rd7 $11) 32... Rd7 $1 {[%emt 0:02:50]} 33. Be5 {[%emt 0:03:50]} Re6 $2 {[%emt 0:00:05]} ({Better is} 33... Qb3 $14) 34. Bxc7 $2 {[%emt 0:02:09]} ({White must play} 34. c5 $1 $18 {[%cal Rc5c6]}) 34... Rg6 $11 {[%emt 0:02:05]} (34... Rxc7 $2 35. Bxe6 fxe6 36. Qd8+ Qf8 37. Qxc7 $18) 35. Bg3 {[%emt 0:00:28]} Rf6 $1 {[%emt 0:01:05]} 36. Bf4 {[%emt 0:03:21]} Rg6 $1 {[%emt 0:00:30]} 37. Qa1 {[%emt 0:11:27]} Qd3 {[%emt 0:00:41]} 38. Qd1 {[%emt 0:00:28]} Qf5 {[%emt 0:00:38]} 39. Rg1 {[%emt 0:00:07]} Rxg1 $1 {[%emt 0:01:12]} (39... Qxh3 $2 40. Rxg6 Bxg6 41. b6 $18) 40. Kxg1 {[%emt 0:00:12]} Qxh3 {[%emt 0:02:28]} 41. Kf2 {[%emt 0:04:22]} Qh4+ $1 {[%emt 0:06:47]} 42. Kg2 $1 {[%emt 0:01:17]} g5 {[%emt 0:05:14]} 43. Be5 {[%emt 0:00:31]} g4 {[%emt 0:13:12]} (43... Qxc4 $5 44. Bxc4 Rxd1 $17) 44. fxg4 {[%emt 0:04:57]} Bxg4 {[%emt 0:00:00]} 45. Qd4 $1 {[%emt 0:00:42]} (45. Qh1 $2 Bf3+ $1 {[%mdl 512]} 46. Kxf3 Qxh1+ $19) 45... Qh3+ {[%emt 0:00:00]} 46. Kf2 {[%emt 0:00:21]} Bf3 {[%emt 0:00:00]} 47. Bxf3 {[%emt 0:01:20]} Rxd4 {[%emt 0:00:00]} 48. Bxd4 {[%emt 0:01:54]} Qh2+ {[%emt 0:01:11]} 49. Kf1 {[%emt 0:03:35]} Qc2 {[%emt 0:12:19]} 50. Bd5 {[%emt 0:10:04]} Qd1+ {[%emt 0:00:00]} 51. Kf2 {[%emt 0:00:57]} Qc2+ {[%emt 0:00:00]} 52. Kg3 {[%emt 0:00:31]} Qg6+ {[%emt 0:00:00]} 53. Kf4 {[%emt 0:00:37]} Qh6+ {[%emt 0:00:00]} 54. Kf3 {[%emt 0:01:45]} Qh5+ {[%emt 0:00:00]} 55. Kf2 {[%emt 0:00:45]} Qf5+ {[%emt 0:00:00]} 56. Kg3 {[%emt 0:04:30]} Qg6+ {[%emt 0:00:00]} 57. Kf4 {[%emt 0:01:06]} Qh6+ {[%emt 0:00:00]} 58. Kf3 {[%emt 0:00:27]} Qh5+ {[%emt 0:00:00]} 59. Kf2 {[%emt 0:00:17]} Qf5+ {[%emt 0:00:00]} 60. Bf3 {[%emt 0:00:02]} Qc2+ {[%emt 0:00:00]} 61. Be2 {[%emt 0:00:07]} Qf5+ {[%emt 0:00:00]} 62. Bf3 {[%emt 0:03:15]} Qc2+ {[%emt 0:00:00]} 63. Kg3 $2 {[%emt 0:00:03]} (63. Be2 $11 {and White is okay.}) 63... Qxc4 $19 {[%emt 0:00:00]} 64. b6 {[%emt 0:00:38] [#]} a4 $1 {[%emt 0:00:00]} 65. b7 {[%emt 0:01:19]} Qc7+ {[%emt 0:00:00]} 66. Kg4 {[%emt 0:00:41]} a3 {[%emt 0:00:00]} 67. Kf5 {[%emt 0:00:27]} a2 {[%emt 0:00:00]} 68. Bc6 {[%emt 0:00:39]} Qd6 {[%emt 0:00:48]} 69. Bb2 $2 {[%emt 0:01:08]} (69. Be5 Qg6+ 70. Kf4 Qh6+ 71. Kf5 Qh3+ 72. Kf4 (72. Ke4 Qg4+ 73. Kd5 Qe6+ 74. Ke4 Qxc6+ 75. Kd3 Qb5+ 76. Ke4 Qxb7+ 77. Kf4 Qd5 78. Ba1 f5 79. Kg3 Qd6+ 80. Kg2 Qd2+ 81. Kf3 Qd1+ 82. Kf4 Qxa1 83. Kxf5 Qf1+ 84. Ke4 a1=Q 85. Kd5 Qf5+ 86. Kc4 Qb2 87. e4 Qfb5#) 72... Qh4+ 73. Kf5 Qh7+ 74. Kg5) 69... Qc5+ $2 {[%emt 0:00:32]} (69... Qe6+ 70. Kf4 Qh6+ 71. Kg4 f5+ 72. Kxf5 Qh3+ 73. Kf4 Qh2+ 74. Kf3 Qxb2 75. Bd5+ Kg7 76. b8=Q Qxb8 77. Bxa2 Qa8+ 78. Kf4 Qxa2 79. Ke4 Kf6 80. Kd4 Qd2+ 81. Ke4 Qd6 82. Kf3 Ke5 83. Kg4 Ke4 84. Kg5 Kxe3 85. Kf5 Kf3 86. Kg5 Qe6 87. Kh5 Kf4 88. Kh4 Qh6#) 70. Be5 $19 {[%emt 0:00:30]} Qxe5+ $2 {[%emt 0:03:50]} (70... a1=Q {leads to mate.} 71. b8=Q+ Qf8 72. Qxf8+ (72. Bxa1 $2 {loses.} Qxb8 73. Be4 Qb5+ 74. Be5 Kf8 $19) 72... Kxf8 73. Bxa1 Ke7 74. Be5 f6 75. Bc7) (70... Qb6 $19 {White must now prevent ...Kf8.} 71. e4 Kf8) 71. Kxe5 $11 {[%emt 0:00:01]} a1=Q+ {[%emt 0:00:08]} 72. Kd6 {[%emt 0:00:04]} Qa7 {[%emt 0:00:49]} 73. Kc7 {[%emt 0:00:05]} Kf8 {[%emt 0:01:14]} 74. Kc8 {[%emt 0:00:35]} Qc5 {[%emt 0:00:27]} (74... Qa6 75. Kc7 Qa7 76. Kc8) 75. b8=Q {[%emt 0:01:17]} Qxc6+ {[%emt 0:00:06]} 76. Kd8 {[%emt 0:00:21]} Qd5+ {[%emt 0:01:10]} 77. Kc7+ {[%emt 0:00:08]} Ke7 {[%emt 0:00:06]} 78. Qb4+ {[%emt 0:00:06]} Ke6 {[%emt 0:00:06]} 79. Qg4+ {[%emt 0:00:11]} f5 {[%emt 0:01:11]} 1/2-1/2

[Event "44th Chess Olympiad Open 2022"]
[Site "Chennai"]
[Date "2022.08.05"]
[Round "7.4"]
[White "Markus, Robert"]
[Black "Nisipeanu, Liviu-Dieter"]
[Result "1/2-1/2"]
[ECO "E07"]
[WhiteElo "2616"]
[BlackElo "2642"]
[Annotator "TA"]
[PlyCount "75"]
[EventDate "2022.07.29"]
[EventType "team-tourn"]
[EventCountry "IND"]
[SourceTitle "playchess.com"]
[Source "ChessBase"]
[SourceQuality "1"]
[WhiteTeam "Serbia"]
[BlackTeam "Germany"]
[WhiteTeamCountry "SRB"]
[BlackTeamCountry "GER"]
[TimeControl "40/5400+30:1800+30"]

{[%evp 16,75,24,10,27,32,27,32,30,22,29,28,29,0,0,0,0,0,0,-5,9,8,18,8,18,16,19,23,21,0,0,0,0,0,0,-26,-8,-10,-12,-11,0,0,0,0,0,0,0,0,0,0,0,0,0,0,0,0,0,0,0,0,0,0]} 1. d4 {[%emt 0:00:04]} Nf6 {[%emt 0:00:06]} 2. c4 {[%emt 0:00:07]} e6 {[%emt 0:00:03]} 3. Nf3 {[%emt 0:00:07]} d5 {[%emt 0:00:06]} 4. g3 {[%emt 0:00:05]} Be7 {[%emt 0:00:05]} 5. Bg2 {[%emt 0:00:07]} O-O {[%emt 0:00:07]} 6. O-O {[%emt 0:00:08]} c6 {[%emt 0:00:07]} 7. b3 {[%emt 0:03:27]} b6 {[%emt 0:07:23]} 8. Bb2 {[%emt 0:01:03]} Nbd7 {[%emt 0:00:00]} 9. Nc3 {[%emt 0:06:12]} a5 {[%emt 0:24:48] 9...Ba6 is a critical line. E07: Closed Catalan: Main Line (5 Nf3 0-0 6 0-0 Nbd7).} 10. Nd2 {[%emt 0:14:10][%cal Bf3d2,Bd2b1,Bb1c3][%mdl 32]} b5 {[%emt 0:00:00]} 11. cxb5 {[%emt 0:12:54]} cxb5 {[%emt 0:00:00] White is slightly better.} 12. Nxb5 {[%emt 0:00:07]} Qb6 {[%emt 0:09:33] [#]} 13. a4 $146 {[%emt 0:07:37]} ({Predecessor:} 13. Nc3 a4 14. Rc1 a3 15. Ba1 Ba6 16. Re1 Bb4 17. Na4 Qa7 18. e3 Bb5 19. Bc3 {½-½ (27) Klemm,R (2029)-Stepan,J (2027) ICCF email 2020}) 13... Ba6 {[%emt 0:00:00]} 14. Nb1 {[%emt 0:00:24]} Bxb5 {[%emt 0:00:00]} 15. axb5 {[%emt 0:00:28]} Qxb5 {[%emt 0:00:00]} 16. Nc3 {[%emt 0:00:06]} Qb7 {[%emt 0:09:36]} 17. Qd3 {[%emt 0:01:55]} Bb4 {[%emt 0:00:00]} 18. e3 {[%emt 0:05:59]} Rfc8 {[%emt 0:02:42]} 19. Rfc1 {[%emt 0:14:19]} Bxc3 {[%emt 0:09:20]} 20. Rxc3 {[%emt 0:00:00]} Rxc3 {[%emt 0:00:04]} 21. Qxc3 {[%emt 0:00:00]} h5 {[%emt 0:00:12]} 22. Bf3 {[%emt 0:14:44][%cal Bg2f3,Bf3d1,Bd1h5][%mdl 32]} g5 {[%emt 0:04:19]} 23. Bd1 {[%emt 0:00:00]} Ne4 {[%emt 0:05:34]} 24. Qe1 {[%emt 0:00:00]} a4 {[%emt 0:03:33]} 25. Bxh5 {[%emt 0:00:00]} axb3 {[%emt 0:04:30] [#] Strongly threatening ...Nb6.} 26. Rxa8+ {[%emt 0:01:38] The position is equal.} Qxa8 {[%emt 0:00:06]} 27. Qb4 {[%emt 0:00:05] Prevents Nb6.} Qa2 {[%emt 0:10:12]} (27... Ndf6 $5 28. Bd1 Qa6 $11) 28. Qe7 $1 {[%emt 0:01:15][%csl LRd7,LRf7]} Qxb2 {[%emt 0:00:21]} 29. Qxf7+ {[%emt 0:03:38]} Kh8 {[%emt 0:00:03]} 30. Qe8+ {[%emt 0:01:08]} Kg7 {[%emt 0:00:07]} 31. Qg6+ {[%emt 0:02:14]} Kh8 {[%emt 0:04:14]} 32. Qh6+ {[%emt 0:00:07]} Kg8 {[%emt 0:00:03]} 33. Qxe6+ {[%emt 0:00:10]} Kh8 {[%emt 0:00:10]} 34. Qe8+ {[%emt 0:03:01]} Kg7 {[%emt 0:01:58]} 35. Qf7+ {[%emt 0:05:46]} Kh8 {[%emt 0:00:00]} 36. Qe8+ {[%emt 0:00:41]} Kg7 {[%emt 0:00:00]} 37. Qf7+ {[%emt 0:00:04]} Kh8 {[%emt 0:00:00] [#] ...Ndf6 is the strong threat.} 38. Qe8+ {[%emt 0:00:09] A balanced but interesting game.  Weighted Error Value: White=0.04 (flawless) /Black=0.04 (flawless)} 1/2-1/2

[Event "44th Chess Olympiad Open 2022"]
[Site "Chennai"]
[Date "2022.08.05"]
[Round "7.5"]
[White "Sarin Nihal"]
[Black "Quesada Perez, Luis Ernesto"]
[Result "1-0"]
[ECO "D17"]
[WhiteElo "2651"]
[BlackElo "2549"]
[Annotator "TA"]
[PlyCount "103"]
[EventDate "2022.07.29"]
[EventType "team-tourn"]
[EventCountry "IND"]
[SourceTitle "playchess.com"]
[Source "ChessBase"]
[SourceQuality "1"]
[WhiteTeam "India"]
[BlackTeam "Cuba"]
[WhiteTeamCountry "IND"]
[BlackTeamCountry "CUB"]
[TimeControl "40/5400+30:1800+30"]

{[%evp 21,103,7,19,-38,0,-13,34,33,46,51,44,43,48,46,60,43,51,50,66,72,75,76,95,98,137,142,135,129,219,216,213,220,213,226,212,219,216,233,230,179,176,125,304,180,291,284,250,0,243,188,379,0,275,178,388,394,421,417,403,236,427,370,327,246,225,146,1115,1079,855,804,29973,29975,29975,29976,29976,29977,29977,29977,29980,0,29982,29983,29982,29983]} 1. d4 {[%emt 0:00:40]} d5 {[%emt 0:00:19]} 2. c4 {[%emt 0:00:05]} c6 {[%emt 0:01:06]} 3. Nf3 {[%emt 0:00:21]} Nf6 {[%emt 0:00:07]} 4. Nc3 {[%emt 0:00:05]} dxc4 {[%emt 0:06:42]} 5. a4 {[%emt 0:00:33]} Bf5 {[%emt 0:00:05]} 6. Ne5 {[%emt 0:00:09]} Nbd7 {[%emt 0:00:22]} 7. Nxc4 {[%emt 0:00:07]} Qc7 {[%emt 0:00:03]} 8. g3 {[%emt 0:04:43]} e5 {[%emt 0:00:07]} 9. dxe5 {[%emt 0:03:09]} Nxe5 {[%emt 0:00:08]} 10. Bf4 {[%emt 0:00:03]} Nfd7 {[%emt 0:00:11]} 11. Bg2 {[%emt 0:00:09]} f6 {[%emt 0:06:47]} 12. Rc1 $5 {[%emt 0:08:19][%mdl 4] Exploring less charted territory. D17: Slav Defence: 5 a4 Bf5: Lines with 6 Nh4 and 6 Ne5.} (12. O-O $11) 12... g5 {[%emt 0:23:57] [#]} 13. Nxe5 $146 {[%emt 0:20:02]} ({Predecessor:} 13. Bxe5 Nxe5 14. Ne3 Bg6 15. O-O Rd8 16. Qb3 Qf7 17. Qxf7+ Kxf7 18. f4 gxf4 19. gxf4 Bc5 {1-0 (51) Cruz Alvarez de Ron,D (2164)-Alonso Vazquez,R (2009) Ortigueira 2002}) 13... gxf4 {[%emt 0:01:39]} (13... Nxe5 $11 {is superior.} 14. Be3 Rd8) 14. Nxd7 $14 {[%emt 0:01:34] White is slightly better.} Qxd7 {[%emt 0:01:23]} 15. Qxd7+ {[%emt 0:04:17]} Bxd7 {[%emt 0:00:27] A strong pair of Bishops.} 16. gxf4 {[%emt 0:00:26]} O-O-O {[%emt 0:14:02]} 17. e3 {[%emt 0:02:30]} Be6 {[%emt 0:00:14]} 18. Ke2 {[%emt 0:14:38]} Bb4 {[%emt 0:06:05]} 19. Be4 {[%emt 0:11:44]} Bb3 {[%emt 0:04:31]} 20. Rhg1 {[%emt 0:09:38]} Kb8 {[%emt 0:11:02]} 21. Rg7 {[%emt 0:03:50]} h5 {[%emt 0:00:24]} 22. Bd3 {[%emt 0:01:00] Against Bc4} a5 {[%emt 0:05:34] [#]} 23. Ne4 $1 {[%emt 0:00:49]} Rhf8 {[%emt 0:06:54]} 24. Bc4 {[%emt 0:04:01] Prevents Be6. White is more active.} Bxc4+ {[%emt 0:03:45]} (24... f5 $16) 25. Rxc4 $18 {[%emt 0:00:05]} f5 {[%emt 0:00:03]} 26. Nc5 {[%emt 0:05:42]} Rd2+ {[%emt 0:01:30]} 27. Kf3 {[%emt 0:00:00]} Bxc5 {[%emt 0:01:45]} 28. Rxc5 {[%emt 0:00:00]} Rxb2 {[%emt 0:00:08]} 29. Rxa5 {[%emt 0:00:00][%mdl 4096] Endgame KRR-KRR} h4 {[%emt 0:00:40]} 30. h3 {[%emt 0:05:27]} Ra2 {[%emt 0:00:21]} 31. Rd7 {[%emt 0:00:26]} (31. Rh7 $18) 31... Rc8 $2 {[%emt 0:02:27]} (31... Rf6 $16 32. Rh7 b5) 32. Rh7 {[%emt 0:01:23]} (32. Rxf5 c5 33. Rdd5 (33. Rff7 Rb2 $18) 33... b6 $18) (32. Rf7 $142) 32... Ra1 {[%emt 0:02:46]} (32... Rf8 {keeps fighting.} 33. Rxh4 b5) 33. Rf7 {[%emt 0:00:19]} (33. Rxf5 $6 Rxa4 34. Rxh4 b5 $18) (33. Rxh4 b5 $16) 33... Ra2 {[%emt 0:00:47]} 34. Rh7 {[%emt 0:00:39]} (34. Raxf5 $6 Rxa4 35. Rc5 b5) 34... Ra1 $1 {[%emt 0:00:06]} 35. Rg7 {[%emt 0:00:30]} (35. Rxh4 $6 b5 $16) 35... Ra3 $2 {[%emt 0:00:38]} (35... Rf8 36. Rh7 Ra3 37. Rxh4 b6) 36. Rd7 {[%emt 0:00:33]} Ra2 $1 {[%emt 0:00:12]} 37. Re7 {[%emt 0:00:31]} Ra3 $2 {[%emt 0:00:06]} (37... Rf8 {is a better defense.} 38. Rh7 Rf6 39. Rh8+ (39. Rxh4 b5 $18) 39... Kc7 40. Rh7+ (40. Rxh4 Kd6 $16) 40... Kb8) 38. Rxf5 {[%emt 0:00:29] And now Rff7 would win.} Rxa4 {[%emt 0:01:26]} 39. Rff7 {[%emt 0:00:20]} Rb4 {[%emt 0:00:33]} 40. Re4 {[%emt 0:00:41]} (40. Rg7 $142) 40... Rb2 $2 {[%emt 0:00:35]} (40... Rb6 41. Rf6 Rb5) 41. f5 {[%emt 0:30:28]} c5 {[%emt 0:01:41] ...c4 is the strong threat.} 42. Rfe7 {[%emt 0:00:00] Strongly threatening f6.} (42. Rxh4 $2 c4 43. Rg7 c3 $19) 42... Rb6 {[%emt 0:03:32]} 43. R7e6 {[%emt 0:00:00] Inhibits Rf6.} ({Inferior is} 43. Rxh4 c4 44. Ree4 (44. Re6 $2 Rxe6 45. fxe6 c3 $19) 44... c3 $19) 43... Rcc6 {[%emt 0:05:04][%mdl 8192]} (43... Rxe6 $16 44. Rxe6 (44. fxe6 Kc7 $16) 44... Kc7) 44. Rxc6 {[%emt 0:00:00]} Rxc6 {[%emt 0:00:02]} 45. Re6 {[%emt 0:00:00] White wants to mate with Rxc6.} Rxe6 {[%emt 0:01:02]} 46. fxe6 {[%emt 0:00:00] KP-KP} Kc7 {[%emt 0:00:05]} 47. Ke4 {[%emt 0:00:00]} Kd6 {[%emt 0:00:09]} 48. e7 $1 {[%emt 0:00:00]} Kxe7 {[%emt 0:00:18]} 49. Kd5 {[%emt 0:00:00]} b6 {[%emt 0:00:12] [#]} 50. f4 $2 {[%emt 0:00:00]} (50. e4 $1 {mates} Kd7 51. f4 Ke7 52. e5 Ke8 53. f5 Kf7 54. Kd6 Ke8 55. Ke6) 50... Kf7 $2 {[%emt 0:03:51][%mdl 8192]} (50... Kf6 $11) 51. e4 {[%emt 0:00:00][%cal Be3e4,Be4e5][%mdl 32]} Ke7 {[%emt 0:00:04]} 52. e5 {[%emt 0:00:00] Weighted Error Value: White=0.49/Black=0.54} 1-0